Cogmind - Beta 13 @@@ ROGUE MODE // 2024.04.04 @ 14:43:42 Player: Spuddz Result: Destroyed by G-34 Mercenary with Small Laser Performance ------------- Evolutions (0) 0 Regions Visited (1) 200 Robots Destroyed (8) 40 Value Destroyed (221) 221 Prototype IDs (0) 0 Alien Tech Used (0) 0 Bonus (0) 0 TOTAL SCORE: 461 Bonus ------- None Cogmind --------- Core Integrity 0/250 Matter 300/300 Energy 100/100 System Corruption 0% Temperature Cool (64) Movement Core (350) Ox6 Location -10/Materials Parts ------- > --- POWER (1) -------- (None) > --- PROPULSION (2) --- (None) > --- UTILITY (2) ------ Large Storage Unit Targeting Computer > --- WEAPON (2) ------- (None) > --- INVENTORY (15) --- Ion Engine Aluminum Leg Heat Sink Heat Sink Cooling System Large Storage Unit Small Laser EMP Blaster Peak State ------------ > --- POWER ------------ Light Ion Engine > --- PROPULSION ------- Aluminum Leg Aluminum Leg > --- UTILITY ---------- Cooling System Targeting Computer > --- WEAPON ----------- Medium Laser Light Assault Rifle > --- INVENTORY -------- Small Laser [Rating: 8] Favorites ----------- Power Ion Engine Engine Ion Engine Propulsion Aluminum Leg Leg Aluminum Leg Utility Targeting Computer Device Cooling System Storage Large Storage Unit Processor Targeting Computer Weapon Medium Laser Energy Gun Medium Laser Ballistic Gun Light Assault Rifle Build | -11 -10 ------- Run | Yrd Mat Slots Evolved . | . . Power . | . . Propulsion . | . . Utility . | . . Weapon . | . . Parts Attached 12 | 6 6 Power 2 | 1 1 Engine 2 | 1 1 Core . | . . Reactor . | . . Propulsion 3 | 2 1 Treads . | . . Leg 3 | 2 1 Wheel . | . . Hover . | . . Flight . | . . Utility 3 | . 3 Device 1 | . 1 Storage 1 | . 1 Processor 1 | . 1 Hackware . | . . Protection . | . . Artifact . | . . Weapon 4 | 3 1 Energy Gun 3 | 2 1 Energy Cannon . | . . Ballistic Gun 1 | 1 . Ballistic Cannon . | . . Launcher . | . . Special Weapon . | . . Impact Weapon . | . . Slashing Weapon . | . . Piercing Weapon . | . . Special Melee Weapon . | . . Unidentified Prototypes . | . . Parts Lost 5 | . 5 Power 1 | . 1 Propulsion 2 | . 2 Utility . | . . Weapon 2 | . 2 Highest Loss Streak 5 | . 5 To Critical Strikes . | . . Average Slot Usage (%) 92 | . 92 Engine 13 | . 13 Leg 26 | . 26 Device 4 | . 4 Storage 6 | . 6 Processor 13 | . 13 Energy Gun 23 | . 23 Ballistic Gun 3 | . 3 Naked Turns . | . . Heaviest Build 28 | 6 28 Greatest Support 20 | 20 20 Greatest Overweight (x) 6 | . 6 Average Overweight (x) . | . . Largest Inventory Capacity 15 | 5 15 Average Capacity 9 | 5 9 Most Carried 8 | 3 8 Average Carried 4 | . 5 Final Capacity 15 | 5 15 Final Carried 8 | 1 8 Class Distribution -------------------- 100% | Mutant Dominant Class ---------------- Mutant | -10/Materials Resources | -11 -10 ----------- Run | Yrd Mat Matter Collected 336 | 263 73 Remotely . | . . Salvage Created 274 | 42 232 Parts 12 | . 12 Haulers Intercepted . | . . Recyclers Shooed 1 | . 1 Parts Field Recycled . | . . Retrieved Matter . | . . Parts Self-Destructed . | . . Prevented . | . . Kills | -11 -10 ------- Run | Yrd Mat Combat Hostiles Destroyed 6 | 1 5 Guns 4 | 1 3 Classes Destroyed 3 | 1 2 Worker 1 | . 1 Watcher 1 | . 1 Grunt 6 | 1 5 Best Kill Streak 3 | 1 3 Combat Bots Only 3 | 1 3 Max Kills in Single Turn 1 | 1 1 Gunslinging . | . . Exploded . | . . Melee . | . . Uniques/NPCs Destroyed . | . . Combat | -11 -10 -------- Run | Yrd Mat Hostile Shots Fired 94 | 5 89 Missed 20 | 3 17 Damage Taken 881 | 22 859 Core 261 | 11 250 Absorbed by Shields . | . . Core Remaining (%) 95 | 95 . Volleys Fired 38 | 3 35 Largest 2 | 2 2 Hottest 90 | 70 90 Shots Fired 75 | 6 69 Gun 75 | 6 69 Cannon . | . . Launcher . | . . Special . | . . Kinetic 16 | 3 13 Thermal 59 | 3 56 Explosive . | . . Electromagnetic . | . . Robot Hit Streak 11 | 1 11 Robot Miss Streak 3 | 1 3 Penetration Max . | . . Secondary Targets 1 | . 1 Max Gunslinging Chain 1 | . 1 Shots Hit Robots 50 | 3 47 Core Hits 14 | 2 12 Critical Kills . | . . Critical Parts Destroyed . | . . Critical Strikes 3 | . 3 Burn 3 | . 3 Melee Attacks . | . . Impact . | . . Slashing . | . . Piercing . | . . Sneak Attacks . | . . Combat Hostiles . | . . Follow-up Attacks . | . . Damage Inflicted 554 | 25 529 Guns 554 | 25 529 Cannons . | . . Explosions . | . . Melee . | . . Ramming . | . . Kinetic 91 | 25 66 Thermal 463 | . 463 Explosive . | . . Electromagnetic . | . . Impact . | . . Slashing . | . . Piercing . | . . Highest Corruption . | . . Average Corruption . | . . Corruption Purged . | . . Corruption Blocked . | . . Overload Shots . | . . Overflow Damage . | . . Projectiles . | . . Explosions . | . . Melee . | . . Knockbacks . | . . Impact . | . . Kinetic . | . . Secondary . | . . Self-Inflicted Damage . | . . Shots . | . . Rammed . | . . Targets Rammed . | . . Kicked . | . . Crushed . | . . Highest Temperature 343 | 36 343 Average Temperature 132 | 20 142 Received Heat Transfer 489 | 12 477 Siege Activations . | . . Robots Corrupted . | . . Combat Hostiles . | . . Parts Fried . | . . Impact Corruptions . | . . Robots Melted 2 | . 2 Combat Hostiles 2 | . 2 Parts Melted 5 | . 5 Heat Transferred 1521 | . 1521 Parts Sabotaged . | . . Parts Stolen . | . . Parts Stripped . | . . Power Chain Reactions . | . . Alert | -11 -10 ------- Run | Yrd Mat Peak Influence 160 | 20 160 Initial 13 | . 13 Average 70 | 3 83 Maximum Alert Level . | . . Low Security (%) 100 | 100 100 Level 1 . | . . Level 2 . | . . Level 3 . | . . Level 4 . | . . Level 5 . | . . High Security . | . . Max Security . | . . Squads Dispatched 2 | . 2 Investigation 2 | . 2 Extermination . | . . Reinforcement . | . . Assault . | . . Garrison . | . . Intercept . | . . Searches Triggered . | . . Construction Impeded . | . . Haulers Reinforced . | . . Active Scanning Responses . | . . Cargo Convoy Interrupts . | . . Stealth | -11 -10 --------- Run | Yrd Mat Distress Signals 2 | . 2 Communications Jammed . | . . Distress Signals . | . . Times Spotted 12 | 1 11 Peak Tracking Total 5 | 1 5 Tactical Retreats 1 | . 1 Traps | -11 -10 ------- Run | Yrd Mat Traps Triggered . | . . Indirectly . | . . Trap Hack Attempts . | . . Triggered . | . . Disarmed . | . . Reprogrammed . | . . Reused . | . . Traps Extracted . | . . Installed . | . . Triggered . | . . Machines | -11 -10 ---------- Run | Yrd Mat Machines Disabled . | . . Max in Single Turn . | . . Machines Repaired . | . . Machines Dismantled . | . . Machines Sabotaged . | . . Overloaded Fab Kills . | . . Hacking | -11 -10 --------- Run | Yrd Mat Machines Accessed 1 | . 1 Terminals . | . . Fabricators . | . . Repair Stations 1 | . 1 Recycling Units . | . . Scanalyzers . | . . Garrison Access . | . . Total Hacks 3 | . 3 Successful 1 | . 1 Failed 2 | . 2 Catastrophic . | . . Database Lockouts . | . . Manual . | . . Terminals . | . . Fabricators . | . . Repair Stations 3 | . 3 Recycling Units . | . . Scanalyzers . | . . Garrison Access . | . . Terminal Hacks . | . . Fabricator Hacks . | . . Repair Station Hacks 1 | . 1 Scan Component 1 | . 1 Recycling Unit Hacks . | . . Scanalyzer . | . . Garrison Access Hacks . | . . Unauthorized Hacks . | . . Terminals . | . . Fabricators . | . . Repair Stations . | . . Recycling Units . | . . Scanalyzers . | . . Garrison Access . | . . Data Cores Recovered . | . . Used . | . . Hacking Detections 1 | . 1 Full Trace Events 1 | . 1 Feedback Events . | . . Feedback Blocked . | . . Robot Schematics Acquired . | . . Robots Built . | . . Authchips . | . . Time . | . . Total Robot Build Rating . | . . Part Schematics Acquired . | . . Parts Built . | . . Authchips . | . . Time . | . . Total Part Build Rating . | . . Parts Repaired . | . . Time . | . . Parts Recycled . | . . Recycled Matter . | . . Retrieved Matter . | . . Retrieved Components . | . . Parts Scanalyzed . | . . Part Schematics Acquired . | . . Parts Damaged . | . . Bothacking | -11 -10 ------------ Run | Yrd Mat Used RIF Installer . | . . Robots Hacked . | . . Non-combat . | . . Combat . | . . Robot Hacks Applied . | . . Relay Couplers Released . | . . Fabnet Peak Effective % . | . . Robots Rewired . | . . Allies Hacked . | . . Hacks Repelled . | . . Allies | -11 -10 -------- Run | Yrd Mat Total Allies . | . . Largest Group . | . . Highest-Rated Group . | . . Highest-Rated Ally . | . . Total Orders . | . . Ally Attacks . | . . Total Damage . | . . Kills . | . . Allies Corrupted . | . . Allies Melted . | . . Intel | -11 -10 ------- Run | Yrd Mat Robot Analysis Total . | . . Derelict Logs Recovered . | . . Drone Launches . | . . Drone Recoveries . | . . Exploration | -11 -10 ------------- Run | Yrd Mat Turns Passed 581 | 93 488 Spaces Moved 313 | 72 241 Core 25 | 20 5 Treads . | . . Legs 288 | 52 236 Wheels . | . . Hover . | . . Flight . | . . Fastest Speed 50 | 50 120 Average Speed 140 | 100 152 Slowest Speed 350 | 120 350 Overloaded Moves . | . . Propulsion Burnouts . | . . Robots Hopped . | . . Cave-ins Triggered . | . . Exploration Rate (%) 24 | 6 42 Regions Visited 1 Branch Regions . Pre-discovered Areas . | . . Known Exits Taken . | . . Unknown Exits Taken 1 | 1 . Scrap Searched . | . . Spaces Dug . | . . Terrain Destroyed . | . . Melee . | . . Projectile . | . . AOE . | . . Terrain Rammed . | . . Walls Destroyed . | . . Machines Disabled . | . . Actions | -11 -10 --------- Run | Yrd Mat Total 383 | 86 297 Wait . | . . Move 312 | 71 241 Hop . | . . Pick Up 18 | 6 12 Fast Attach . | . . Attach 7 | 5 2 Detach . | . . Swap 5 | 1 4 Drop 3 | . 3 Fire 38 | 3 35 Melee . | . . Ram . | . . Kick . | . . Crush . | . . Escape Stasis . | . . Rewire . | . . Trap . | . . Miscellaneous . | . . Route ------- -11/Scrapyard -10/Materials (discovered 1 exit: [*Min]) History --------- Turn | Location | Event 2 | -11/Scrapyard | Met Revision 17 65 | -11/Scrapyard | Discovered new exit (range 8) 94 | -11/Scrapyard | Entered Materials 310 | -10/Materials | Build established: Mutant 443 | -10/Materials | Discovered new exit (range 16) 570 | -10/Materials | Core integrity fell below 50% 575 | -10/Materials | Core integrity fell below 20% 582 | -10/Materials | Destroyed by G-34 Mercenary with Small Laser Last Messages --------------- EXIT=FOUND Connecting with Repair Station... Current location identified: Materials >>Scan(Aluminum Leg) Scanning Aluminum Leg... Ready to Repair: Aluminum Leg Rating: 1 Time: 26 ALERT: Suspicious activity at Repair Station M001. Dispatching Investigation squad. [Achievement: One Hack Too Far] K-01 Serf cleans the Fusion Modulator. K-01 Serf destroyed. Ion Engine destroyed. Aluminum Leg destroyed. Sml. Laser destroyed. Med. Laser destroyed. M-13 Machinist repairs G-47 Trooper. Machine disabled. Map ----- +----------------------------------------------------+ | ??????????????????????????????"""" """"" | | ???????????????????????????? """"" """"" | | ????????????????????????""" """"" """"" ##### | | ?????????????????????? #???? | | ?????????????????????? #???? | | ?????????????????????? ##### | | ?????????????????????????########+#+##### ^^ | | ????????????????????????????????? ?????# ^ | | ????????????????????????????????????????# ^ | | ????????????????????????????????????????######## | | ???????????????????????? ????????????????#!= % | | ???????????????????????? ????????????????#!![ ! | | ???????????????????????? ????????????????#== | | ???????????????????????# #???????????????#== | | ???????????????????????# #???????????????#] | | ???????????????????????#u #???????????????#]] | | ?????????????????????### ##??????????????###### | | ????????????????????#" #???????????????????# | | ????????????????????#"" #???????????????????# | | ????????????????????#|| #???????????????????# | | ????????????????????#"" < #???????????????????#% | | ????????????????????#!! #???????????????????#[ | | ?????????????????????" #???????????????????# | | ?????????????????????? a #???????????????????# | | ???????????????????????# #????##+###??????????# | | ???????????????????????# @!##### ##### ????# | | ???????????????????????# g%* ???# | | ???????????????????????# = ????# | | ???????????????????????# ????# | | ???????????????????????# r ###?? ???# | | ?????????????????????? # m############+####+ | | ????????????????????? + # !!] | | ???????????????????????# %+% !]! """ | | ???????????????????????# ! # %!]! R" | | ???????????????????????# % gg # """ | | ??????????????########## !! # | | ??????????????# # % % ############# | | ??????????????#[ + #???????????? | | ??????????????# # """ #???????????? | | ??????????????# ###### """ #???????????? | | ??????????????# ! #????# """ #???????????? | | ??????????????# #????# #???????????? | | ??????????????# #????# #???????????? | | ??????????????# #????# """ #???????????? | | ??????????????# #????# """ #???????????? | | ??????????????#####+####????# """ #???????????? | | ????????????????# ####### ##+###??????? | | ????????????????# ???? | | ????????????????# T ???? | | ????????????????# ???? | +----------------------------------------------------+ Best States ------------- Heat Dissipation 47 Energy Generation 10 Energy Capacity 250 Matter Stores 300 Matter Capacity 300 Sight Range 16 Terrain Scan Density 10 Evasion (%) 55 Targeting Accuracy 5 Item Schematics ----------------- None Robot Schematics ------------------ None Fabricated ------------ Nothing Alien Tech Used ----------------- None Achievements -------------- It's Just You One Hack Too Far Challenges ------------ None Game ------ Seed SlugPointyPenetrator Manual? 0 Play Time 00:13:56 Cumulative 1.1 hours Start 2024.04.04 @ 14:27:17 End 2024.04.04 @ 14:43:42 Sessions 1 Manual Loads 0 Difficulty Rogue Special Mode None Game No. 2 Rogue 2 Adventurer 0 Explorer 0 Win Type - Total 0 Types 0/0/0/0/0/0/0/0/0 Lore% 0 Gallery% 3 Achievement% 4 Wizard Run 0 Options --------- Layout 1 ASCII 0 Keyboard 0 Movement Mouse Keybinds 0 Fullscreen 2 Font 32/Terminus Map View 50x35 Zoom Use 0% Tactical HUD 0 Map Filters NONE Filters NONE Steam 1 RUN: 476aab8a-ab3b-42f9-91a0-2e50f30f6bc3